{"text_format":"1","workbook":"xlsx","n_sheets":3,"sheets":["Inicio","AMI","reglas"],"not_rendered":{"charts":0,"images":8,"macros":1,"external_links":0,"defined_names":17,"comments":0,"pivot_tables":0},"unopened":[],"bounds":{"document_bytes":16777216,"sheet_cells":100000,"rows_first":2000,"rows_last":500,"rows_between":2000,"halvings":0,"cell_chars":16384,"cell_head_chars":4096},"cells_cut":0,"cells_raw":0,"read":"whole","date_system":"1900"}

{"sheet":"Inicio","index":0,"n_rows":37,"n_cols":9,"rows_kept":37,"cut":false,"hidden":false,"merged":[]}
["Versión Mayo 2020"]
[]
[]
[]
[]
[]
[]
[]
[]
[]
[]
[]
[]
[]
[]
[null,"*Solo completar los datos por el cual desea rehacer"]
[]
[]
[]
[]
[]
[]
[]
[]
[]
[]
[]
[]
[]
[]
[]
[]
[]
[]
[]
[]
[null,null,null,null,null,null,null,null,"Debe decir : "]

{"sheet":"AMI","index":1,"n_rows":206,"n_cols":21,"rows_kept":206,"cut":false,"hidden":false,"merged":[[140,3,140,14],[139,3,139,14],[137,3,137,14],[100,8,105,10],[103,3,105,6],[65,1,66,2],[65,3,66,6],[65,7,78,7],[67,1,69,2],[67,3,69,6],[134,1,134,16],[106,1,108,2],[109,1,110,2],[106,3,106,10],[107,3,107,10],[108,3,108,10],[109,3,109,10],[110,3,110,10],[117,1,117,16],[120,3,120,9],[121,3,121,9],[129,1,131,1],[122,3,122,9],[123,3,123,9],[129,3,131,14],[17,1,17,16],[20,3,20,9],[23,3,23,15],[24,1,26,1],[24,3,26,14],[22,3,22,14],[79,3,80,10],[81,3,82,10],[92,1,93,2],[92,3,93,6],[92,7,105,7],[92,8,93,10],[63,12,63,14],[63,10,63,11],[79,1,80,2],[81,1,82,2],[65,8,66,10],[67,8,69,10],[70,8,72,10],[73,8,78,10],[94,1,96,2],[94,3,96,6],[94,8,96,10],[97,1,99,2],[151,1,151,16],[144,4,144,7],[144,8,144,9],[146,1,148,1],[146,3,148,14],[70,1,72,2],[70,3,72,6],[73,1,78,2],[73,3,75,6],[76,3,78,6],[84,3,86,14],[112,3,114,14],[112,1,114,1],[89,1,89,16],[127,3,127,14],[126,3,126,14],[125,3,125,14],[97,3,99,6],[97,8,99,10],[100,1,105,2],[100,3,102,6],[142,1,142,14],[143,10,143,11],[143,12,143,14],[205,3,207,14],[199,12,199,14],[200,12,200,14],[201,12,201,14],[202,12,202,14],[203,12,203,14],[168,3,168,14],[202,3,202,7],[203,3,203,7],[194,1,194,16],[205,1,207,1],[178,11,178,14],[200,3,200,7],[201,3,201,7],[170,3,172,14],[61,1,61,14],[154,3,154,14],[166,3,166,9],[170,1,172,1],[144,10,144,11],[144,12,144,14],[199,3,199,7],[181,1,183,1],[186,1,186,16],[189,1,191,1],[197,3,197,9],[181,3,183,14],[189,3,191,14],[175,1,175,16],[178,3,178,8],[143,1,143,3],[143,4,143,7],[143,8,143,9],[158,1,160,1],[84,1,86,1],[144,1,144,3],[163,1,163,16],[158,3,160,14],[156,3,156,14],[43,1,43,16],[63,8,63,9],[53,1,55,1],[29,1,29,16],[38,1,40,1],[46,10,46,12],[48,3,48,14],[50,3,50,14],[51,3,51,14],[53,3,55,14],[38,3,40,14],[58,1,58,16],[62,1,62,3],[62,4,62,7],[62,8,62,9],[32,3,32,14],[63,1,63,3],[63,4,63,7],[46,3,46,8],[35,3,35,14],[33,3,33,14],[36,3,36,14],[62,10,62,11],[62,12,62,14],[15,1,15,2],[15,3,15,4],[15,5,15,6],[15,7,15,8],[15,9,15,10],[8,2,8,5],[10,4,10,5],[9,10,10,12],[8,10,8,12],[14,11,14,12],[15,11,15,12],[13,1,13,12],[1,6,1,7],[2,6,2,7],[5,1,6,5],[11,12,11,13],[14,1,14,2],[14,3,14,4],[14,5,14,6],[14,7,14,8],[14,9,14,10]]}
[]
[null,null,null,null,null,null,"ASUNTO :",null,{"$f":"+ASUNTOS","v":" / Anulación / Póliza : Seleccione -  / Corredor: "},null,null,null,"*"]
[null,null,null,null,null,null,"CORREO :",null,{"$f":"+U22","v":"recepcion@rimac.com.pe"},{"$f":"+U23","v":" "}]
[]
["Version 5.20"]
[null,"FORMATO AMI"]
[]
[]
[null,"Corredor:",null,null,null,null,"Fecha para endoso ",":",null,null,"Nota"]
[null,null,null,null,"Nro Producto",null,null,null,null,null,"Colocar la fecha en la que se debe realizar el endoso solicitado, caso contrario se tomara fecha del correo.",null,null,null,null,null,null,null,null,null,{"$f":"+S61","v":"Anulación"}]
[null,"Producto :","Seleccione","-",{"$f":"IF(C11=\"Seleccione\",\"\",_xlfn.XLOOKUP(C11,Codigo,Producto,\"\"))","v":""},null,"Nro de Póliza",":"]
[]
[]
[null,"Datos del Contratante"]
[null,"Nombres y Apellidos o Razon social",null,"Tipo de Dcto",null,"Nro de Dcto",null,"Correo Electrónico",null,"Teléfono",null,"Dirección"]
[null,null,null,"Seleccione"]
[]
[null,"ANULACIÓN"]
[]
[]
[null,"Motivo de Anulación :",null,"Seleccione",null,null,null,null,null,null,null,null,null,null,null,null,null,null,null,null,{"$f":"B16&\" / \"&U10&\" / Póliza : \"&C11&\" - \"&I11&\" / Corredor: \"&C9","v":" / Anulación / Póliza : Seleccione -  / Corredor: "}]
[null,null,null,null,null,null,null,null,null,null,null,null,null,null,null,null,null,null,null,null,{"$f":"+T61","v":"recepcion@rimac.com.pe"}]
[null,"IMPORTANTE",null,"Si se requiere anulación con fecha a futuro el cliente deberá pagar por todo el tiempo coberturado hasta la fecha solicitante.",null,null,null,null,null,null,null,null,null,null,null,null,null,null,null,null,{"$f":"+T62","v":" "}]
[]
[null,"OBSERVACIÓN"]
[]
[]
[]
[]
[null,"CAMBIO DE AGENCIAMIENTO"]
[]
[]
[null,"OBLIGATORIO",null,"Carta de nombramiento según modelo SBS"]
[null,null,null,"DNI vigente de contratante"]
[]
[null,"IMPORTANTE",null,"Carta de nombramiento debe tener firma manuscrita no superpuesta / Contingencia por pandemia: correo de cliente confirmando agenciamiento"]
[null,null,null,"Para persona jurídica la carta debe ser membretada."]
[]
[null,"OBSERVACIÓN"]
[]
[]
[]
[]
[null,"MIGRACIÓN (cambio de producto)"]
[]
[]
[null,"Nuevo producto :",null,"Seleccione",null,null,null,null,null,null,"Indicar plan para 4134"]
[]
[null,"OBLIGATORIO",null,"DPS editable o tradicional"]
[]
[null,"IMPORTANTE",null,"La DPS editable debe contar con firma biométrica y la DPS tradicional debe contar con firma manuscrita"]
[null,null,null,"No se aceptarán DPS con firmas superpuestas"]
[]
[null,"OBSERVACIÓN"]
[]
[]
[]
[]
[null,"CAMBIO DE CONTRATANTE"]
[]
[null,null,null,null,null,null,null,null,null,null,null,null,null,null,null,null,null,null,"Anulación","recepcion@rimac.com.pe"]
[null,"Datos de nuevo contratante (Obligatorio)",null,null,null,null,null,null,null,null,null,null,null,null,null,null,null,null,"Anulación"," "]
[null,"Nombre o Razón Social",null,null,"Tipo de Documento",null,null,null,"Nro. de Documento",null,"Correo electrónico",null,"Dirección"]
[null,null,null,null,"Seleccione"]
[]
[null,"TIPO DE PÓLIZA",null,"REGULAR",null,null,null,null,"SEMIREGULAR"]
[]
[null,"DESCRIPCIÓN",null,"Pólizas cuyo inicio de vigencia es el 01 del mes.",null,null,null,null,"Pólizas cuyo inicio de vigencia es cualquier día del mes (diferente a 1)."]
[]
[]
[null,"CAMBIO DE CONTRATANTE",null,"Se realiza solo el día 01 del mes.",null,null,null,null,"Se realiza considerando el mismo día de su vigencia. "]
[]
[]
[null,"CONSIDERAR \nPARA ELEGIR FECHA",null,"Solicitud enviada hasta el día 15: se trabajará al día 01 del mes en el que se envió la solicitud.",null,null,null,null,"Ejemplo: Si la póliza actual inicia el 05/01 y se solicita cambio de contrantante en noviembre debe especificar si se realizará el 05/11 o el 05/12. "]
[]
[]
[null,null,null,"Solicitud enviada después del día 15: se trabajará al día 01 del mes siguiente en el que se envió la solicitud."]
[]
[]
[null,"OBLIGATORIO \n(PARA AMBOS CASOS)",null,"Llenar todos los datos del nuevo contratante en el recuadro superior."]
[]
[null,"IMPORTANTE\n(PARA AMBOS CASOS)",null,"El cliente deberá pagar por todo el tiempo coberturado hasta la fecha solicitada."]
[]
[]
[null,"OBSERVACIÓN"]
[]
[]
[]
[]
[null,"INCLUSIÓN"]
[]
[]
[null,"TIPO DE PÓLIZA",null,"REGULAR",null,null,null,null,"SEMIREGULAR"]
[]
[null,"DESCRIPCIÓN",null,"Pólizas cuyo inicio de vigencia es el 01 del mes.",null,null,null,null,"Pólizas cuyo inicio de vigencia es cualquier día del mes (diferente a 1)."]
[]
[]
[null,"INCLUSIÓN",null,"Puede realizarse solo el día 01 del mes.",null,null,null,null,"Puede realizarse cualquier día del mes."]
[]
[]
[null,"CONSIDERAR \nPARA ELEGIR FECHA",null,"Solicitud enviada hasta el día 15: se trabajará al día 01 del mes en el que se envió la solicitud.",null,null,null,null,"Inclusión de recién nacidos puede trabajarse desde su fecha de nacimiento siempre que no hayan pasado más de 60 días desde su nacimiento. "]
[]
[]
[null,null,null,"Solicitud enviada después del día 15: se trabajará al día 01 del mes siguiente en el que se envió la solicitud."]
[]
[]
[null,"OBLIGATORIO \n(PARA AMBOS CASOS)",null,"Enviar DPS editable o tradicional."]
[null,null,null,"Recién nacido con menos de 60 días debe enviar Acta de nacimiento o Certificado de Nacido Vivo."]
[null,null,null,"Recién nacido con más de 60 días debe enviar DPS editable o tradicional."]
[null,"IMPORTANTE\n(PARA AMBOS CASOS)",null,"La DPS editable debe contar con firma biométrica y la DPS tradicional debe contar con firma manuscrita."]
[null,null,null,"No se aceptarán DPS con firmas superpuestas."]
[]
[null,"OBSERVACIÓN"]
[]
[]
[]
[]
[null,"EXCLUSIÓN"]
[]
[]
[null,"Nombre de asegurado a excluir:"]
[]
[]
[]
[]
[null,"IMPORTANTE",null,"Si la operación incluye modificar al contratante por favor generar solicitud como CAMBIO DE CONTRATANTE."]
[null,null,null,"Tener en cuenta que de excluir al titular se colocará como nuevo titular al siguiente afiliado de mayor edad."]
[null,null,null,"El cliente deberá pagar por todo el tiempo coberturado hasta la fecha solicitante."]
[]
[null,"OBSERVACIÓN"]
[]
[]
[]
[]
[null,"LIBERACIÓN DE PRIMA"]
[]
[]
[null,"OBLIGATORIO",null,"Acta de fallecimiento de titular / Certificado de defunción de titular"]
[]
[null,"IMPORTANTE",null,"El cliente deberá estar al día en los pagos hasta la fecha de fallecimiento de titular"]
[null,null,null,"En caso de que titular y contratante sean la misma persona debe ingresar a continuación los datos del nuevo contratante de forma obligatoria."]
[]
[null,"Datos de nuevo contratante (Obligatorio)"]
[null,"Nombre o Razón Social",null,null,"Tipo de Documento",null,null,null,"Nro. de Documento",null,"Correo electrónico",null,"Dirección"]
[null,null,null,null,"Seleccione"]
[]
[null,"OBSERVACIÓN"]
[]
[]
[]
[]
[null,"REHABILITACIÓN"]
[]
[]
[null,"OBLIGATORIO",null,"Debe adjuntar VB del ejecutivo comercial"]
[]
[null,"IMPORTANTE",null,"En caso póliza haya sido anulada por morosidad debe solicitar la rehabilitación con el área de cobranzas al correo: requerimientoscobranzas@rimac.com.pe"]
[]
[null,"OBSERVACIÓN"]
[]
[]
[]
[]
[null,"DESCUENTO AMI"]
[]
[]
[null,"Motivo de Descuento :",null,"Seleccione"]
[]
[null,"OBLIGATORIO",null,"Para descuento contra comisión debe adjuntar VB de gerente corredor y de ejecutivo comercial"]
[]
[null,"OBSERVACIÓN"]
[]
[]
[]
[]
[null,"CAMBIO DE PLAN (sobre el mismo producto)"]
[]
[]
[null,"Producto :",null,"Seleccione",null,null,null,null,null,null,"Nuevo plan :    "]
[null,null,null,null,null,null,null,null,null,null,null,"Detallar aquí el plan a migrar"]
[]
[null,"OBSERVACIÓN"]
[]
[]
[]
[]
[null,"RENOVACIÓN AMI"]
[]
[]
[null,"DETALLE"]
[]
[]
[]
[]
[null,"OTROS ENDOSOS"]
[]
[]
[null,"Tipo de Endoso :",null,"Seleccione"]
[]
[null,null,null,"Nombre de asegurado",null,null,null,null,"Correo electrónico","Tipo Doc.","Nro. Doc","Correo Electrónico","Dirección"]
[]
[]
[]
[]
[]
[null,"DETALLE"]

{"sheet":"reglas","index":2,"n_rows":208,"n_cols":14,"rows_kept":208,"cut":false,"hidden":true,"merged":[]}
["Producto"]
[]
[null,"Seleccione"," ",null,"Seleccione",null,"Seleccione","Seleccione","Seleccione"]
[1,"Multirriesgo",1301,null,"D.N.I.",null,"Modular","Modular","Modular"]
[2,"3D",1505,null,"R.U.C.",null,"Corporativa","Corporativa","Corporativa"]
[{"$f":"+A5+1","v":3},"Deshonestidad",1501,null,"C.E.",null,"Colectiva",{"$f":"IF(#REF!=\"Nueva póliza\",\"\",\"Colectiva\")","v":{"$error":"#REF!"}},{"$f":"IF(#REF!=\"Póliza Nueva\",\"\",\"Colectiva\")","v":{"$error":"#REF!"}}]
[{"$f":"+A6+1","v":4},"Robo",1101,null,"PASAPORTE"]
[5,"Responsabilidad Civil",1201]
[6,"Domiciliario",1402,null,"Seleccione",null,"Seleccione"]
[7,"Seguro Bancario",1601,null,"Desde inicio de vigencia",null,"Si"]
[8,"Transportes Anual",3003,null,"Otros :",null,"No"]
[9,"Transportes Flotante",3001]
[10,"Transporte Individual",3002,null,"Seleccione"]
[11,"Transporte Individual",3002,null,"Cambio de Compañía",null,"Seleccione"]
[12,"TREC",3301,null,"No puede pagar la póliza",null,"Exclusión"]
[13,"CAR - Construcción",3311,null,"No desea póliza",null,"Inclusión"]
[14,"EAR - Montaje",3321,null,"Otro( Especifique) :",null,"Modificación"]
[15,"Equip. Electrónico",3341,null,null,null,null,null,null,null,null,897,null,{"$f":"L18/8","v":112.125}]
[16,"Rotura de Maquinaria",3331,null,"Seleccione",null,"Seleccione"]
[17,"OCT -Obras Civiles Terminadas",3351,null,"Asegurado",null,"Anulación"]
[18,"Negocio Seguro",1338,null,"Responsable de Pago",null,"Exclusión"]
[null,null,null,null,"Contratante"]
[]
[null,null,null,null,"Seleccione",null,"Seleccione"]
[null,"Seleccione",null,null,"Cláusula",null,"Póliza"]
[null,"Incluir",null,null,"Cobertura",null,"Certificado"]
[null,"Excluir",null,null,"Deducible"]
[null,"Modificar",null,null,"Condición especial (Especifíque)"]
[null,null,null,null,"Varios (especificar en observación)",null,"Seleccione"]
[null,null,null,null,null,null,"Nueva póliza"]
[null,null,null,null,null,null,"Inclusión"]
[null,null,"Seleccione"," ","  "]
[null,null,"Daño Propio",2101,"2101 -",null,"Seleccione"]
[null,"nueva poliza","Brevete",2010,"2010 -",null,"Póliza Nueva"]
[null,"inclusion ","Responsabilidad Civil - TPU",2016,"2016 -",null,"Inclusión"]
[null,"exclusion","Traslados",2014,"2014 -",null,"Nueva póliza TPU - TPI"]
[null,null,"Exhibición de Placas",2015,"2015 -",null,"Inclusión TPU - TPI"]
[null,null,null,null,null,null,"Renovación TPI/TPU"]
[]
[null,null,"Seleccione"," "]
[null,null,"Daño Propio",2101]
[null,null,"Responsabilidad Civil - TPU",2016]
[]
[]
[]
[]
[null,null,"Seleccione"," "]
[null,null,"Atención","Mal servicio de Rimac, proveedores o experiencia"]
[null,null,"Motivo económico","Problemas económicos o cese laboral"]
[null,null,"Precio","No está de acuerdo con el precio."]
[null,null,"Producto","No le satisface el producto o los beneficios"]
[null,null,"Tiene Eps","Anula porque tiene EPS con otra compañía o con Rimac"]
[null,null,"Venta","Insatisfacción en el proceso de la venta, no reconoce la compra"]
[null,null,"Venta del bien asegurado","Venderá o está en proceso de vender el bien"]
[null,null,"Seguro con nuevas condiciones","Anula porque emitirá nueva póliza con otras condiciones"]
[null,null,"Otros","No brinda detalle, entre otros"]
[]
[]
[]
[]
[]
[]
[]
[]
[null,"Seleccione"]
[null,"Físico"]
[null,"Digital -Correo electrónico"]
[null,"Número de especie valorada"]
[]
[]
[]
[]
[]
[]
[]
[null,null,"Seleccione"," ",null,"Seleccione"]
[null,null,"Baja o rechazo de la unidad ante el MTC o ATU","solo aplica para exclusión",null,"Digital"]
[null,null,"Venta de la unidad","solo aplica para exclusión",null,"Físico"]
[null,null," Unidad inoperativa (pérdida total)","solo aplica para exclusión"]
[null,null,"Cambio de Uso","solo aplica para exclusión",null,"Seleccione"]
[null,null,"Otros","solo aplica para exclusión",null,"Nueva póliza individual"]
[null,null,null,null,null,"Inclusión Individual"]
[null,null,null,null,null,"Nueva póliza TPU - TPI"]
[null,null,null,null,null,"Inclusión TPU - TPI"]
[null,null,null,null,null,"Renovación TPI/TPU"]
[]
[]
[]
[null,null,null,null,null,"Seleccione"]
[null,null,null,null,null,"Contado"]
[null,null,null,null,null,"Cupones"]
[]
[]
[null,null,null,null,null,"Seleccione"]
[null,null,null,null,null,"Con devolución"]
[null,null,null,null,null,"Sin devolución"]
[]
[]
[]
[]
[null,null,null,null,null,"Seleccione","Seleccione"]
[null,null,null,null,null,4012," SALUD PREFERENCIAL",4012]
[null,null,null,null,null,4011," FULL SALUD",4011]
[null,null,null,null,null,4004," SALUD RED MÉDICA",4004]
[null,null,null,null,null,4038," SALUD RED PREFERENTE",4038]
[null,null,null,null,null,4007," SALUD DE ORO A ",4007]
[null,null,null,null,null,4007," SALUD DE ORO B ",4007]
[null,null,null,null,null,4007," SALUD DE ORO C ",4007]
[null,null,null,null,null,4016," SALUD RED MED HOSP",4016]
[null,null,null,null,null,4095," SALUD RED PRIVADA",4095]
[null,null,null,null,null,4049," SALUD PREFERENCIAL FFVV",4049]
[null,null,null,null,null,4052," FULL SALUD FFVV",4052]
[null,null,null,null,null,4050," SALUD RED MÉDICA FFVV",4050]
[null,null,null,null,null,4054," SALUD RED PREFERENTE FFVV",4054]
[null,null,null,null,null,4053," SALUD DE ORO FFVV A ",4053]
[null,null,null,null,null,4053," SALUD DE ORO FFVV B ",4053]
[null,null,null,null,null,4053," SALUD DE ORO FFVV C ",4053]
[null,null,null,null,null,4051," SALUD RED MED HOSP FFVV",4051]
[null,null,null,null,null,4093," SALUD RED PRIVADA FFVV",4093]
[null,null,null,null,null,4134," SALUD FLEXIBLE",4134]
[null,null,null,null,null,4104," SALUD RED MEDICA PLAN FAMILIA ",4104]
[]
[]
[]
[null,null,null,null,null,"Seleccione","Seleccione"]
[null,null,null,null,null,1,"RETIRO DE LA EMPRESA"]
[null,null,null,null,null,2,"RETIRO POR LÍMITE DE EDAD"]
[null,null,null,null,null,3,"DECESO"]
[null,null,null,null,null,4,"COSTO DE PLAN"]
[null,null,null,null,null,5,"INSTATISFACCIÓN DEL SERVICIO RIMAC"]
[null,null,null,null,null,6,"INSTATISFACCIÓN DEL SERVICIO PROVEEDOR"]
[null,null,null,null,null,7,"AFILIACIÓN A OTRO SEGURO"]
[null,null,null,null,null,8,"OTROS"]
[null,null,null,null,null,9,"FALTA DE PAGO"]
[null,null,null,null,null,10,"EMPRESA SE RETIRA A OTRA EPS"]
[null,null,null,null,null,11,"FIN DE LATENCIA"]
[null,null,null,null,null,12,"TRASLAPE DE VIGENCIA"]
[]
[null,null,null,null,null,"Seleccione","Seleccione"]
[null,null,null,null,null,1,"DESCUENTO GYR"]
[null,null,null,null,null,2,"DESCUENTO POR GRUPO"]
[null,null,null,null,null,3,"DESCUENTO CONTRA COMISIÓN"]
[null,null,null,null,null,4,"DESCUENTO POR CAMPAÑA"]
[null,null,null,null,null,5,"OTROS MOTIVOS"]
[null,null,null,null,null,"Seleccione"]
[null,null,null,null,null,"4012 - AMI SALUD PREFERENCIAL"]
[null,null,null,null,null,"4011 - AMI FULL SALUD"]
[null,null,null,null,null,"4004 - AMI SALUD RED MÉDICA"]
[null,null,null,null,null,"4038 - AMI SALUD RED PREFERENTE"]
[null,null,null,null,null,"4007 - AMI SALUD DE ORO A - COMPLETO"]
[null,null,null,null,null,"4007 - AMI SALUD DE ORO B - RED / RED MÉDICA"]
[null,null,null,null,null,"4007 - AMI SALUD DE ORO C - RED PREFERENTE"]
[null,null,null,null,null,"4016 - AMI SALUD RED MED HOSP"]
[null,null,null,null,null,"4095 - AMI SALUD RED PRIVADA"]
[null,null,null,null,null,"4134 - AMI SALUD FLEXIBLE"]
[null,null,null,null,null,"4049 - AMI SALUD PREFERENCIAL FFVV"]
[null,null,null,null,null,"4052 - AMI FULL SALUD FFVV"]
[null,null,null,null,null,"4050 - AMI SALUD RED MÉDICA FFVV"]
[null,null,null,null,null,"4054 - AMI SALUD RED PREFERENTE FFVV"]
[null,null,null,null,null,"4053 A - AMI SALUD DE ORO A FFVV / COMPLETA"]
[null,null,null,null,null,"4053 B - AMI SALUD DE ORO A FFVV / RED MÉDICA"]
[null,null,null,null,null,"4053 C - AMI SALUD DE ORO A FFVV / RED PREFERENTE"]
[null,null,null,null,null,"4051 - SALUD RED MED HOSP FFVV"]
[null,null,null,null,null,"4091 - ONCO. INTEGRAL INDIVIDUAL FFVV"]
[null,null,null,null,null,"4076 - ONCOLÓGICA CORREDORES"]
[]
[null,null,null,null,null,"Seleccione"]
[null,null,null,null,null,"ACTUALIZACIÓN DE DATOS"]
[null,null,null,null,null,"LEVANTAMIENTO DE PREEXISTENCIAS"]
[null,null,null,null,null,"REVISIÓN DE CONTINUIDAD"]
[null,null,null,null,null,"OTROS"]
[]
[null,null,null,null,null,"Seleccione","Seleccione"]
[null,null,null,null,null,4012,"SALUD PREFERENCIAL"]
[null,null,null,null,null,4011,"FULL SALUD"]
[null,null,null,null,null,4004,"SALUD RED MÉDICA"]
[null,null,null,null,null,4038,"SALUD RED PREFERENTE"]
[null,null,null,null,null,"4007 A","SALUD DE ORO A COMPLETO "]
[null,null,null,null,null,"4007 B","SALUD DE ORO B RED MEDICA/RED"]
[null,null,null,null,null,"4007 C","SALUD DE ORO C RED PREFERENTE"]
[null,null,null,null,null,4016,"SALUD RED MED HOSP"]
[null,null,null,null,null,4095,"SALUD RED PRIVADA"]
[null,null,null,null,null,4134,"SALUD FLEXIBLE"]
[null,null,null,null,null,4049,"SALUD PREFERENCIAL FFVV"]
[null,null,null,null,null,4052,"FULL SALUD FFVV"]
[null,null,null,null,null,4050,"SALUD RED MÉDICA FFVV"]
[null,null,null,null,null,4054,"SALUD RED PREFERENTE FFVV"]
[null,null,null,null,null,"4053 A","SALUD DE ORO FFVV A "]
[null,null,null,null,null,"4053 B","SALUD DE ORO FFVV B "]
[null,null,null,null,null,"4053 C","SALUD DE ORO FFVV C "]
[null,null,null,null,null,4051,"SALUD RED MED HOSP FFVV"]
[null,null,null,null,null,4093,"SALUD RED PRIVADA FFVV"]
[null,null,null,null,null,4104,"SALUD RED MEDICA PLAN FAMILIA "]
[null,null,null,null,null,4076,"ONCOLOGICA CORREDORES"]
[null,null,null,null,null,4091,"ONCO. INTEGRAL INDIVIDUAL FFVV"]
[null,null,null,null,null,4017,"AMI ONCOLOGICO SCOTIABANK"]
[null,null,null,null,null,4018,"ONCOLOGICA RIMAC"]
[null,null,null,null,null,4126,"IEG 12"]
[null,null,null,null,null,7003,"RENTA HOSPITALARIA POR TELEMARKETING"]
[null,null,null,null,null,9106,"ACC. NYJ"]
[null,null,null,null,null,9109,"ACCIDENTES INDIVIDUALES"]
[null,null,null,null,null,4008,"SUPRA"]
[null,null,null,null,null,4020,"CORPORATIVA REHDER"]
[null,null,null,null,null,4028,"CORPORATIVAS"]
[null,null,null,null,null,4063,"CORPORATIVAS SEGUNDA CAPA"]
[null,null,null,null,null,4079,"SINDROME DOWN"]
[null,null,null,null,null,4081,"SINDROME DE DOWN - FFVV"]
[null,null,null,null,null,4039,"INDEMNIZATORIO ENF GRAVES"]